[Event "Titled Tuesday Blitz January 17 Late 2023"]
[White "Mikaelyan, Arman"]
[Black "Andrews, Todd"]
[WhiteFideId "13304852"]
[BlackFideId "2012456"]
[WhiteElo "2523"]
[BlackElo "2220"]
[Result "1-0"]
[Round "01"]
[TimeControl "180+2"]
[Date "2023.01.17"]
[WhiteClock "0:01:54"]
[BlackClock "0:01:05"]

1. d4 {[%clk 0:02:58]}  Nf6 {[%clk 0:02:56]} 2. c4 {[%clk 0:02:59]}  c5 {[%clk 0:02:53]} 3. d5 {[%clk 0:02:58]}  b5 {[%clk 0:02:54]} 4. cxb5 {[%clk 0:02:59]}  a6 {[%clk 0:02:54]} 5. bxa6 {[%clk 0:02:57]}  g6 {[%clk 0:02:54]} 6. Nc3 {[%clk 0:02:57]}  Bg7 {[%clk 0:02:55]} 7. a7 {[%clk 0:02:56]}  Rxa7 {[%clk 0:02:54]} 8. e4 {[%clk 0:02:56]}  O-O {[%clk 0:02:51]} 9. Nf3 {[%clk 0:02:56]}  Qa5 {[%clk 0:02:49]} 10. Bd2 {[%clk 0:02:56]}  Qb4 {[%clk 0:02:37]} 11. Qc2 {[%clk 0:02:52]}  Ra8 {[%clk 0:02:17]} 12. e5 {[%clk 0:02:50]}  Ng4 {[%clk 0:02:16]} 13. Nb5 {[%clk 0:02:30]}  Qa4 {[%clk 0:02:13]} 14. b3 {[%clk 0:02:30]}  Qa6 {[%clk 0:02:05]} 15. Nc7 {[%clk 0:02:30]}  Qb7 {[%clk 0:02:05]} 16. Nxa8 {[%clk 0:02:30]}  Nxe5 {[%clk 0:02:01]} 17. Nxe5 {[%clk 0:02:28]}  Bxe5 {[%clk 0:02:00]} 18. Bc3 {[%clk 0:02:28]}  Bxc3+ {[%clk 0:01:51]} 19. Qxc3 {[%clk 0:02:29]}  Qxa8 {[%clk 0:01:49]} 20. Bc4 {[%clk 0:02:28]}  d6 {[%clk 0:01:47]} 21. O-O {[%clk 0:02:28]}  Nd7 {[%clk 0:01:48]} 22. Rfe1 {[%clk 0:02:26]}  Re8 {[%clk 0:01:41]} 23. a4 {[%clk 0:02:21]}  Bb7 {[%clk 0:01:41]} 24. a5 {[%clk 0:02:20]}  Bxd5 {[%clk 0:01:40]} 25. Bxd5 {[%clk 0:02:15]}  Qxd5 {[%clk 0:01:41]} 26. a6 {[%clk 0:02:13]}  e5 {[%clk 0:01:24]} 27. a7 {[%clk 0:02:10]}  Ra8 {[%clk 0:01:24]} 28. Qf3 {[%clk 0:02:02]}  Qxf3 {[%clk 0:01:13]} 29. gxf3 {[%clk 0:02:03]}  Nb6 {[%clk 0:01:12]} 30. Ra6 {[%clk 0:02:02]}  Nc8 {[%clk 0:01:12]} 31. Rea1 {[%clk 0:02:00]}  Kf8 {[%clk 0:01:11]} 32. Rc6 {[%clk 0:01:56]}  Ne7 {[%clk 0:01:05]} 33. Rb6 {[%clk 0:01:54]} 1-0


[Site "https://www.chess.com"]

[Event "Titled Tuesday Blitz January 17 Late 2023"]
[White "Hajiyev, Kanan"]
[Black "Bernadskiy, Vitaliy"]
[WhiteFideId "13404148"]
[BlackFideId "14100371"]
[WhiteElo "2197"]
[BlackElo "2592"]
[Result "0-1"]
[Round "01"]
[TimeControl "180+2"]
[Date "2023.01.17"]
[WhiteClock "0:00:13"]
[BlackClock "0:01:56"]

1. d4 {[%clk 0:03:00]}  Nf6 {[%clk 0:02:59]} 2. Nf3 {[%clk 0:03:01]}  g6 {[%clk 0:02:59]} 3. c4 {[%clk 0:02:59]}  Bg7 {[%clk 0:02:58]} 4. Nc3 {[%clk 0:02:59]}  d5 {[%clk 0:02:57]} 5. Bf4 {[%clk 0:02:56]}  O-O {[%clk 0:02:56]} 6. e3 {[%clk 0:02:56]}  c5 {[%clk 0:02:54]} 7. dxc5 {[%clk 0:02:57]}  Ne4 {[%clk 0:02:50]} 8. Qb3 {[%clk 0:02:24]}  Na6 {[%clk 0:02:40]} 9. cxd5 {[%clk 0:02:04]}  Naxc5 {[%clk 0:02:39]} 10. Qa3 {[%clk 0:01:53]}  Nxc3 {[%clk 0:02:36]} 11. bxc3 {[%clk 0:01:52]}  Ne4 {[%clk 0:02:34]} 12. Bc4 {[%clk 0:01:00]}  b5 {[%clk 0:02:27]} 13. Bb3 {[%clk 0:00:50]}  b4 {[%clk 0:02:24]} 14. Qa4 {[%clk 0:00:27]}  Bxc3+ {[%clk 0:02:17]} 15. Ke2 {[%clk 0:00:26]}  Bd7 {[%clk 0:02:13]} 16. Qa6 {[%clk 0:00:23]}  Qe8 {[%clk 0:01:58]} 17. Bc4 {[%clk 0:00:20]}  Rc8 {[%clk 0:01:57]} 18. Bd3 {[%clk 0:00:20]}  Nc5 {[%clk 0:01:57]} 19. Qxa7 {[%clk 0:00:12]}  Nxd3 {[%clk 0:01:56]} 20. Kxd3 {[%clk 0:00:13]}  Bb5+ {[%clk 0:01:56]} 0-1


[Site "https://www.chess.com"]

[Event "Titled Tuesday Blitz January 17 Late 2023"]
[White "Baskakov, Egor"]
[Black "Titus, Andrew"]
[WhiteFideId "24197866"]
[BlackFideId "2059770"]
[WhiteElo "2215"]
[BlackElo "2124"]
[Result "1-0"]
[Round "01"]
[TimeControl "180+2"]
[Date "2023.01.17"]
[WhiteClock "0:00:11"]
[BlackClock "0:00:01"]

1. e4 {[%clk 0:02:59]}  c5 {[%clk 0:02:58]} 2. Nf3 {[%clk 0:02:59]}  d6 {[%clk 0:02:58]} 3. d4 {[%clk 0:02:58]}  cxd4 {[%clk 0:02:59]} 4. Nxd4 {[%clk 0:02:58]}  Nf6 {[%clk 0:02:59]} 5. Nc3 {[%clk 0:02:59]}  a6 {[%clk 0:03:00]} 6. a4 {[%clk 0:02:59]}  e6 {[%clk 0:03:00]} 7. g3 {[%clk 0:02:58]}  b6 {[%clk 0:02:59]} 8. Bg2 {[%clk 0:02:59]}  Bb7 {[%clk 0:03:00]} 9. O-O {[%clk 0:02:58]}  Qc7 {[%clk 0:02:58]} 10. Re1 {[%clk 0:02:55]}  Be7 {[%clk 0:02:59]} 11. Nb1 {[%clk 0:02:54]}  O-O {[%clk 0:02:55]} 12. b3 {[%clk 0:02:54]}  Nc6 {[%clk 0:02:51]} 13. c4 {[%clk 0:02:52]}  Nxd4 {[%clk 0:02:45]} 14. Qxd4 {[%clk 0:02:53]}  Nd7 {[%clk 0:02:45]} 15. Bb2 {[%clk 0:02:47]}  Bf6 {[%clk 0:02:40]} 16. Qd2 {[%clk 0:02:47]}  Bxb2 {[%clk 0:02:41]} 17. Qxb2 {[%clk 0:02:46]}  Nc5 {[%clk 0:02:42]} 18. Qc2 {[%clk 0:02:43]}  f5 {[%clk 0:02:22]} 19. Nc3 {[%clk 0:02:42]}  f4 {[%clk 0:02:19]} 20. Rad1 {[%clk 0:02:38]}  fxg3 {[%clk 0:01:54]} 21. hxg3 {[%clk 0:02:36]}  Rf6 {[%clk 0:01:33]} 22. e5 {[%clk 0:02:27]}  dxe5 {[%clk 0:01:31]} 23. Bxb7 {[%clk 0:02:26]}  Qxb7 {[%clk 0:01:27]} 24. Rxe5 {[%clk 0:02:24]}  Raf8 {[%clk 0:01:11]} 25. Rd2 {[%clk 0:02:13]}  Qf3 {[%clk 0:01:04]} 26. Re3 {[%clk 0:02:00]}  Qh5 {[%clk 0:01:03]} 27. Qd1 {[%clk 0:01:35]}  Qh3 {[%clk 0:00:50]} 28. Qf1 {[%clk 0:01:34]}  Qh5 {[%clk 0:00:46]} 29. Ne4 {[%clk 0:01:26]}  Rh6 {[%clk 0:00:42]} 30. Qg2 {[%clk 0:01:26]}  Nxe4 {[%clk 0:00:40]} 31. Rxe4 {[%clk 0:01:27]}  Qc5 {[%clk 0:00:36]} 32. Re3 {[%clk 0:01:16]}  b5 {[%clk 0:00:32]} 33. axb5 {[%clk 0:01:10]}  axb5 {[%clk 0:00:33]} 34. Qe4 {[%clk 0:01:05]}  bxc4 {[%clk 0:00:31]} 35. bxc4 {[%clk 0:01:06]}  Rc8 {[%clk 0:00:26]} 36. Red3 {[%clk 0:01:00]}  Qa5 {[%clk 0:00:22]} 37. Qg4 {[%clk 0:00:42]}  Rg6 {[%clk 0:00:18]} 38. Qe4 {[%clk 0:00:41]}  Rf8 {[%clk 0:00:15]} 39. Re2 {[%clk 0:00:35]}  Qb6 {[%clk 0:00:14]} 40. Kg2 {[%clk 0:00:34]}  Rgf6 {[%clk 0:00:14]} 41. f4 {[%clk 0:00:34]}  Rg6 {[%clk 0:00:14]} 42. Rde3 {[%clk 0:00:29]}  Qc7 {[%clk 0:00:09]} 43. Rf3 {[%clk 0:00:27]}  Rgf6 {[%clk 0:00:08]} 44. Rc2 {[%clk 0:00:25]}  Rd8 {[%clk 0:00:08]} 45. c5 {[%clk 0:00:25]}  Rd5 {[%clk 0:00:08]} 46. c6 {[%clk 0:00:24]}  Rd6 {[%clk 0:00:08]} 47. Rfc3 {[%clk 0:00:24]}  Rf8 {[%clk 0:00:08]} 48. Rb3 {[%clk 0:00:23]}  Rfd8 {[%clk 0:00:06]} 49. Rb7 {[%clk 0:00:21]}  Rd2+ {[%clk 0:00:06]} 50. Rxd2 {[%clk 0:00:21]}  Rxd2+ {[%clk 0:00:07]} 51. Kf3 {[%clk 0:00:20]}  Qd6 {[%clk 0:00:07]} 52. c7 {[%clk 0:00:18]}  Rd3+ {[%clk 0:00:07]} 53. Kg4 {[%clk 0:00:17]}  h5+ {[%clk 0:00:07]} 54. Kxh5 {[%clk 0:00:16]}  Qc5+ {[%clk 0:00:08]} 55. Kg4 {[%clk 0:00:15]}  Qc3 {[%clk 0:00:03]} 56. Qxe6+ {[%clk 0:00:12]}  Kh7 {[%clk 0:00:04]} 57. Qe4+ {[%clk 0:00:12]}  Kh6 {[%clk 0:00:02]} 58. Rb6+ {[%clk 0:00:12]}  g6 {[%clk 0:00:01]} 59. Qxg6# {[%clk 0:00:11]} 1-0


[Site "https://www.chess.com"]

[Event "Titled Tuesday Blitz January 17 Late 2023"]
[White "Garcia Almaguer, Juan Manuel"]
[Black "Yanchenko, Roman"]
[WhiteFideId "5110491"]
[BlackFideId "4137329"]
[WhiteElo "2090"]
[BlackElo "2466"]
[Result "0-1"]
[Round "01"]
[TimeControl "180+2"]
[Date "2023.01.17"]
[WhiteClock "0:00:33"]
[BlackClock "0:00:49"]

1. e4 {[%clk 0:02:30]}  e6 {[%clk 0:02:57]} 2. d4 {[%clk 0:02:28]}  d5 {[%clk 0:02:57]} 3. Nd2 {[%clk 0:02:27]}  c5 {[%clk 0:02:57]} 4. Ngf3 {[%clk 0:02:27]}  Nc6 {[%clk 0:02:58]} 5. exd5 {[%clk 0:02:27]}  exd5 {[%clk 0:02:58]} 6. Bb5 {[%clk 0:02:27]}  c4 {[%clk 0:02:59]} 7. Bxc6+ {[%clk 0:02:25]}  bxc6 {[%clk 0:02:59]} 8. O-O {[%clk 0:02:25]}  Bd6 {[%clk 0:02:59]} 9. h3 {[%clk 0:02:25]}  Ne7 {[%clk 0:02:59]} 10. b3 {[%clk 0:02:23]}  cxb3 {[%clk 0:02:58]} 11. axb3 {[%clk 0:02:24]}  O-O {[%clk 0:02:59]} 12. Ba3 {[%clk 0:02:23]}  Nf5 {[%clk 0:02:57]} 13. Bxd6 {[%clk 0:02:23]}  Qxd6 {[%clk 0:02:57]} 14. Ra5 {[%clk 0:02:19]}  Qb4 {[%clk 0:02:44]} 15. Qa1 {[%clk 0:02:11]}  Nxd4 {[%clk 0:02:32]} 16. Nxd4 {[%clk 0:02:03]}  Qxd2 {[%clk 0:02:32]} 17. Rxa7 {[%clk 0:01:56]}  Rxa7 {[%clk 0:02:21]} 18. Qxa7 {[%clk 0:01:57]}  Qc3 {[%clk 0:02:20]} 19. Qa1 {[%clk 0:01:49]}  Qc5 {[%clk 0:02:18]} 20. c3 {[%clk 0:01:47]}  Qb6 {[%clk 0:02:09]} 21. b4 {[%clk 0:01:35]}  c5 {[%clk 0:02:09]} 22. Nc2 {[%clk 0:01:36]}  Bf5 {[%clk 0:01:56]} 23. bxc5 {[%clk 0:01:36]}  Qxc5 {[%clk 0:01:56]} 24. Nd4 {[%clk 0:01:21]}  Bg6 {[%clk 0:01:52]} 25. Re1 {[%clk 0:01:19]}  Rc8 {[%clk 0:01:50]} 26. Re3 {[%clk 0:01:19]}  h6 {[%clk 0:01:47]} 27. g4 {[%clk 0:01:19]}  Be4 {[%clk 0:01:46]} 28. Qe1 {[%clk 0:01:12]}  Qc7 {[%clk 0:01:35]} 29. f3 {[%clk 0:01:11]}  Bg6 {[%clk 0:01:22]} 30. Re8+ {[%clk 0:01:01]}  Rxe8 {[%clk 0:01:23]} 31. Qxe8+ {[%clk 0:01:02]}  Kh7 {[%clk 0:01:24]} 32. Qe1 {[%clk 0:01:01]}  Qf4 {[%clk 0:01:21]} 33. Kg2 {[%clk 0:01:01]}  Qb8 {[%clk 0:01:09]} 34. h4 {[%clk 0:00:56]}  h5 {[%clk 0:01:05]} 35. Qd2 {[%clk 0:00:43]}  hxg4 {[%clk 0:01:04]} 36. fxg4 {[%clk 0:00:44]}  Be4+ {[%clk 0:01:04]} 37. Kh3 {[%clk 0:00:43]}  Qb1 {[%clk 0:01:03]} 38. Nf5 {[%clk 0:00:36]}  Qf1+ {[%clk 0:00:54]} 39. Kg3 {[%clk 0:00:34]}  Qf3+ {[%clk 0:00:50]} 40. Kh2 {[%clk 0:00:33]}  Qxg4 {[%clk 0:00:49]} 0-1


[Site "https://www.chess.com"]

[Event "Titled Tuesday Blitz January 17 Late 2023"]
[White "Moroni, Luca Jr"]
[Black "Mortazavi, Ali"]
[WhiteFideId "865834"]
[BlackFideId "401323"]
[WhiteElo "2535"]
[BlackElo "2333"]
[Result "1-0"]
[Round "01"]
[TimeControl "180+2"]
[Date "2023.01.17"]
[WhiteClock "0:01:19"]
[BlackClock "0:00:19"]

1. g3 {[%clk 0:03:00]}  g6 {[%clk 0:02:55]} 2. Bg2 {[%clk 0:03:01]}  Bg7 {[%clk 0:02:55]} 3. d4 {[%clk 0:02:58]}  Nf6 {[%clk 0:02:54]} 4. b3 {[%clk 0:02:58]}  O-O {[%clk 0:02:54]} 5. Bb2 {[%clk 0:02:59]}  d6 {[%clk 0:02:55]} 6. Nf3 {[%clk 0:02:59]}  a5 {[%clk 0:02:55]} 7. c4 {[%clk 0:02:57]}  a4 {[%clk 0:02:54]} 8. bxa4 {[%clk 0:02:57]}  c6 {[%clk 0:02:54]} 9. O-O {[%clk 0:02:57]}  Qa5 {[%clk 0:02:50]} 10. Nc3 {[%clk 0:02:57]}  Qh5 {[%clk 0:02:47]} 11. h4 {[%clk 0:02:48]}  e5 {[%clk 0:02:43]} 12. Ba3 {[%clk 0:02:36]}  e4 {[%clk 0:02:26]} 13. Ng5 {[%clk 0:02:33]}  e3 {[%clk 0:02:24]} 14. f3 {[%clk 0:02:14]}  h6 {[%clk 0:02:18]} 15. Nh3 {[%clk 0:02:11]}  Qa5 {[%clk 0:02:11]} 16. Rc1 {[%clk 0:02:07]}  Bf5 {[%clk 0:01:51]} 17. g4 {[%clk 0:02:03]}  Bxg4 {[%clk 0:01:31]} 18. fxg4 {[%clk 0:02:04]}  Nxg4 {[%clk 0:01:31]} 19. Bxd6 {[%clk 0:01:56]}  Rd8 {[%clk 0:01:18]} 20. c5 {[%clk 0:01:56]}  Qb4 {[%clk 0:01:12]} 21. Rf4 {[%clk 0:01:55]}  h5 {[%clk 0:01:00]} 22. Qb3 {[%clk 0:01:53]}  Na6 {[%clk 0:00:49]} 23. Qxf7+ {[%clk 0:01:49]}  Kh8 {[%clk 0:00:48]} 24. Qxg6 {[%clk 0:01:46]}  Qb2 {[%clk 0:00:33]} 25. Rcf1 {[%clk 0:01:23]}  Nb4 {[%clk 0:00:19]} 26. Ng5 {[%clk 0:01:19]} 1-0


[Site "https://www.chess.com"]

[Event "Titled Tuesday Blitz January 17 Late 2023"]
[White "Ortega Ruiz, Jose Miguel"]
[Black "Holt, Conrad"]
[WhiteFideId "2209713"]
[BlackFideId "2034387"]
[WhiteElo "2351"]
[BlackElo "2540"]
[Result "0-1"]
[Round "01"]
[TimeControl "180+2"]
[Date "2023.01.17"]
[WhiteClock "0:01:39"]
[BlackClock "0:02:15"]

1. c4 {[%clk 0:02:59]}  c6 {[%clk 0:02:55]} 2. g3 {[%clk 0:02:59]}  d5 {[%clk 0:02:55]} 3. d4 {[%clk 0:02:58]}  dxc4 {[%clk 0:02:54]} 4. Bg2 {[%clk 0:02:58]}  e5 {[%clk 0:02:54]} 5. dxe5 {[%clk 0:02:51]}  Qxd1+ {[%clk 0:02:52]} 6. Kxd1 {[%clk 0:02:52]}  Nd7 {[%clk 0:02:47]} 7. Nf3 {[%clk 0:02:52]}  Ne7 {[%clk 0:02:41]} 8. e6 {[%clk 0:02:50]}  fxe6 {[%clk 0:02:39]} 9. Nc3 {[%clk 0:02:41]}  Nd5 {[%clk 0:02:37]} 10. Ne4 {[%clk 0:02:40]}  N7f6 {[%clk 0:02:33]} 11. Nd4 {[%clk 0:02:24]}  Nxe4 {[%clk 0:02:28]} 12. Bxe4 {[%clk 0:02:23]}  Nf6 {[%clk 0:02:27]} 13. Bg2 {[%clk 0:02:23]}  e5 {[%clk 0:02:27]} 14. Nc2 {[%clk 0:02:19]}  Ng4 {[%clk 0:02:23]} 15. Ke1 {[%clk 0:02:14]}  Bc5 {[%clk 0:02:22]} 16. e3 {[%clk 0:02:05]}  O-O {[%clk 0:02:22]} 17. f4 {[%clk 0:02:01]}  Bf5 {[%clk 0:02:19]} 18. e4 {[%clk 0:01:53]}  exf4 {[%clk 0:02:19]} 19. exf5 {[%clk 0:01:49]}  Rae8+ {[%clk 0:02:18]} 20. Kf1 {[%clk 0:01:43]}  fxg3 {[%clk 0:02:15]} 21. h3 {[%clk 0:01:39]}  Rxf5+ {[%clk 0:02:15]} 0-1


[Site "https://www.chess.com"]

[Event "Titled Tuesday Blitz January 17 Late 2023"]
[White "Urazayev, Arystanbek"]
[Black "Urbina Perez, Juan Antonio"]
[WhiteFideId "13709810"]
[BlackFideId "2217368"]
[WhiteElo "2460"]
[BlackElo "2266"]
[Result "0-1"]
[Round "01"]
[TimeControl "180+2"]
[Date "2023.01.17"]
[WhiteClock "0:00:05"]
[BlackClock "0:00:15"]

1. e4 {[%clk 0:02:55]}  e5 {[%clk 0:02:56]} 2. Nf3 {[%clk 0:02:55]}  Nc6 {[%clk 0:02:56]} 3. Bb5 {[%clk 0:02:56]}  a6 {[%clk 0:02:57]} 4. Ba4 {[%clk 0:02:56]}  Nf6 {[%clk 0:02:56]} 5. O-O {[%clk 0:02:56]}  b5 {[%clk 0:02:55]} 6. Bb3 {[%clk 0:02:56]}  Bc5 {[%clk 0:02:56]} 7. a4 {[%clk 0:02:52]}  Bb7 {[%clk 0:02:51]} 8. c3 {[%clk 0:02:51]}  d6 {[%clk 0:02:48]} 9. d4 {[%clk 0:02:51]}  Bb6 {[%clk 0:02:48]} 10. Bg5 {[%clk 0:02:37]}  O-O {[%clk 0:02:36]} 11. Re1 {[%clk 0:02:30]}  h6 {[%clk 0:02:30]} 12. Bh4 {[%clk 0:02:31]}  Re8 {[%clk 0:02:25]} 13. axb5 {[%clk 0:02:18]}  axb5 {[%clk 0:02:26]} 14. Rxa8 {[%clk 0:02:18]}  Bxa8 {[%clk 0:02:25]} 15. Na3 {[%clk 0:02:18]}  b4 {[%clk 0:02:22]} 16. Nc2 {[%clk 0:02:17]}  bxc3 {[%clk 0:02:20]} 17. bxc3 {[%clk 0:02:18]}  Na5 {[%clk 0:02:12]} 18. Ba2 {[%clk 0:02:04]}  exd4 {[%clk 0:01:51]} 19. cxd4 {[%clk 0:01:16]}  g5 {[%clk 0:01:42]} 20. Nxg5 {[%clk 0:01:12]}  hxg5 {[%clk 0:01:30]} 21. Bxg5 {[%clk 0:01:13]}  Bxe4 {[%clk 0:01:30]} 22. Ne3 {[%clk 0:01:13]}  d5 {[%clk 0:00:36]} 23. f3 {[%clk 0:01:10]}  Bg6 {[%clk 0:00:31]} 24. Re2 {[%clk 0:00:15]}  Nc4 {[%clk 0:00:22]} 25. Ng4 {[%clk 0:00:10]}  Rxe2 {[%clk 0:00:23]} 26. Nxf6+ {[%clk 0:00:10]}  Kh8 {[%clk 0:00:21]} 27. Ne4 {[%clk 0:00:10]}  Rxe4 {[%clk 0:00:19]} 28. Bxd8 {[%clk 0:00:09]}  Bxd4+ {[%clk 0:00:17]} 29. Kh1 {[%clk 0:00:08]}  Ne3 {[%clk 0:00:17]} 30. Qb1 {[%clk 0:00:05]}  Re8 {[%clk 0:00:15]} 31. Bxc7 {[%clk 0:00:05]}  Bxb1 {[%clk 0:00:14]} 32. Bxb1 {[%clk 0:00:05]}  Rc8 {[%clk 0:00:15]} 0-1


[Site "https://www.chess.com"]

[Event "Titled Tuesday Blitz January 17 Late 2023"]
[White "Dahl, Trygve"]
[Black "Lodici, Lorenzo"]
[WhiteFideId "1513427"]
[BlackFideId "884189"]
[WhiteElo "2206"]
[BlackElo "2524"]
[Result "0-1"]
[Round "01"]
[TimeControl "180+2"]
[Date "2023.01.17"]
[WhiteClock "0:00:01"]
[BlackClock "0:00:25"]

1. c4 {[%clk 0:02:59]}  c5 {[%clk 0:02:56]} 2. Nc3 {[%clk 0:02:59]}  Nf6 {[%clk 0:02:48]} 3. e4 {[%clk 0:02:59]}  Nc6 {[%clk 0:02:47]} 4. g3 {[%clk 0:02:59]}  g6 {[%clk 0:02:45]} 5. Bg2 {[%clk 0:02:59]}  Bg7 {[%clk 0:02:46]} 6. Nge2 {[%clk 0:02:59]}  O-O {[%clk 0:02:46]} 7. d3 {[%clk 0:03:00]}  e6 {[%clk 0:02:45]} 8. O-O {[%clk 0:02:53]}  d5 {[%clk 0:02:43]} 9. exd5 {[%clk 0:02:52]}  exd5 {[%clk 0:02:43]} 10. Nxd5 {[%clk 0:02:52]}  Nxd5 {[%clk 0:02:43]} 11. Bxd5 {[%clk 0:02:52]}  Nb4 {[%clk 0:02:43]} 12. Nc3 {[%clk 0:02:46]}  Bxc3 {[%clk 0:02:25]} 13. bxc3 {[%clk 0:02:44]}  Nxd5 {[%clk 0:02:26]} 14. cxd5 {[%clk 0:02:42]}  Qxd5 {[%clk 0:02:27]} 15. c4 {[%clk 0:02:30]}  Qc6 {[%clk 0:02:22]} 16. f3 {[%clk 0:02:28]}  Bf5 {[%clk 0:02:17]} 17. d4 {[%clk 0:02:11]}  cxd4 {[%clk 0:02:10]} 18. Qxd4 {[%clk 0:02:10]}  Rfd8 {[%clk 0:02:07]} 19. Qe5 {[%clk 0:02:02]}  f6 {[%clk 0:02:06]} 20. Qc3 {[%clk 0:01:55]}  Rd3 {[%clk 0:02:05]} 21. Qb4 {[%clk 0:01:50]}  Rxf3 {[%clk 0:02:04]} 22. Bb2 {[%clk 0:01:40]}  Re8 {[%clk 0:01:33]} 23. Qb5 {[%clk 0:00:37]}  Qxb5 {[%clk 0:01:26]} 24. cxb5 {[%clk 0:00:37]}  Rxf1+ {[%clk 0:01:23]} 25. Rxf1 {[%clk 0:00:37]}  Bd3 {[%clk 0:01:01]} 26. Rf2 {[%clk 0:00:15]}  f5 {[%clk 0:00:56]} 27. Bd4 {[%clk 0:00:14]}  b6 {[%clk 0:00:55]} 28. a4 {[%clk 0:00:14]}  Re4 {[%clk 0:00:55]} 29. Bc3 {[%clk 0:00:08]}  Rxa4 {[%clk 0:00:55]} 30. Rd2 {[%clk 0:00:08]}  Bxb5 {[%clk 0:00:54]} 31. Rd8+ {[%clk 0:00:08]}  Kf7 {[%clk 0:00:55]} 32. Rh8 {[%clk 0:00:08]}  h5 {[%clk 0:00:55]} 33. Kf2 {[%clk 0:00:07]}  Ra3 {[%clk 0:00:53]} 34. Bd4 {[%clk 0:00:07]}  Bc6 {[%clk 0:00:50]} 35. Be3 {[%clk 0:00:04]}  b5 {[%clk 0:00:48]} 36. Rh7+ {[%clk 0:00:04]}  Ke6 {[%clk 0:00:48]} 37. Rxa7 {[%clk 0:00:04]}  Rb3 {[%clk 0:00:45]} 38. Ra6 {[%clk 0:00:05]}  Kd5 {[%clk 0:00:45]} 39. h3 {[%clk 0:00:05]}  b4 {[%clk 0:00:45]} 40. g4 {[%clk 0:00:04]}  hxg4 {[%clk 0:00:44]} 41. hxg4 {[%clk 0:00:05]}  fxg4 {[%clk 0:00:41]} 42. Ra5+ {[%clk 0:00:05]}  Ke6 {[%clk 0:00:41]} 43. Bd4 {[%clk 0:00:04]}  Bf3 {[%clk 0:00:39]} 44. Kg3 {[%clk 0:00:03]}  Rd3 {[%clk 0:00:38]} 45. Bc5 {[%clk 0:00:03]}  b3 {[%clk 0:00:38]} 46. Ra6+ {[%clk 0:00:02]}  Kd5 {[%clk 0:00:39]} 47. Bf8 {[%clk 0:00:02]}  Rd2 {[%clk 0:00:37]} 48. Rb6 {[%clk 0:00:02]}  Rg2+ {[%clk 0:00:37]} 49. Kf4 {[%clk 0:00:02]}  Kc4 {[%clk 0:00:37]} 50. Bg7 {[%clk 0:00:02]}  Bd5 {[%clk 0:00:34]} 51. Rxg6 {[%clk 0:00:02]}  Bf3 {[%clk 0:00:28]} 52. Rb6 {[%clk 0:00:01]}  Re2 {[%clk 0:00:26]} 53. Rb8 {[%clk 0:00:01]}  Re7 {[%clk 0:00:25]} 54. Bf6 {[%clk 0:00:01]}  Rf7 {[%clk 0:00:25]} 0-1


[Site "https://www.chess.com"]

[Event "Titled Tuesday Blitz January 17 Late 2023"]
[White "marik_spb"]
[Black "Artemenko, Oleg"]
[BlackFideId "14201798"]
[WhiteElo "2408"]
[BlackElo "2246"]
[Result "0-1"]
[Round "01"]
[TimeControl "180+2"]
[Date "2023.01.17"]
[WhiteClock "0:00:08"]
[BlackClock "0:00:33"]

1. d4 {[%clk 0:02:52]}  Nf6 {[%clk 0:02:57]} 2. c4 {[%clk 0:02:52]}  b6 {[%clk 0:02:54]} 3. Nf3 {[%clk 0:02:49]}  Bb7 {[%clk 0:02:54]} 4. Nc3 {[%clk 0:02:48]}  d6 {[%clk 0:02:53]} 5. g3 {[%clk 0:02:48]}  Nbd7 {[%clk 0:02:53]} 6. Bg2 {[%clk 0:02:48]}  e5 {[%clk 0:02:49]} 7. O-O {[%clk 0:02:48]}  Be7 {[%clk 0:02:46]} 8. b3 {[%clk 0:02:46]}  O-O {[%clk 0:02:45]} 9. dxe5 {[%clk 0:02:44]}  Nxe5 {[%clk 0:02:36]} 10. Nxe5 {[%clk 0:02:44]}  Bxg2 {[%clk 0:02:37]} 11. Kxg2 {[%clk 0:02:44]}  dxe5 {[%clk 0:02:37]} 12. Bb2 {[%clk 0:02:43]}  Qc8 {[%clk 0:02:04]} 13. Qd3 {[%clk 0:02:39]}  Rd8 {[%clk 0:01:58]} 14. Qf3 {[%clk 0:02:28]}  Qe6 {[%clk 0:01:55]} 15. e4 {[%clk 0:02:00]}  c6 {[%clk 0:01:46]} 16. Rad1 {[%clk 0:01:58]}  Rd4 {[%clk 0:01:28]} 17. Qe2 {[%clk 0:00:50]}  Rad8 {[%clk 0:01:19]} 18. f3 {[%clk 0:00:49]}  Bb4 {[%clk 0:01:12]} 19. Nb1 {[%clk 0:00:46]}  R4d6 {[%clk 0:00:57]} 20. a3 {[%clk 0:00:36]}  Bc5 {[%clk 0:00:55]} 21. b4 {[%clk 0:00:35]}  Bd4 {[%clk 0:00:55]} 22. Bc1 {[%clk 0:00:31]}  c5 {[%clk 0:00:51]} 23. Bg5 {[%clk 0:00:22]}  h6 {[%clk 0:00:51]} 24. Bxf6 {[%clk 0:00:22]}  Qxf6 {[%clk 0:00:52]} 25. f4 {[%clk 0:00:22]}  Qe7 {[%clk 0:00:50]} 26. f5 {[%clk 0:00:13]}  f6 {[%clk 0:00:50]} 27. b5 {[%clk 0:00:13]}  Qb7 {[%clk 0:00:43]} 28. Nd2 {[%clk 0:00:13]}  a6 {[%clk 0:00:43]} 29. a4 {[%clk 0:00:11]}  axb5 {[%clk 0:00:43]} 30. cxb5 {[%clk 0:00:10]}  Kh8 {[%clk 0:00:41]} 31. Nb3 {[%clk 0:00:10]}  Ra8 {[%clk 0:00:38]} 32. Nxd4 {[%clk 0:00:07]}  exd4 {[%clk 0:00:35]} 33. Ra1 {[%clk 0:00:05]}  Re8 {[%clk 0:00:34]} 34. Rfe1 {[%clk 0:00:05]}  Re5 {[%clk 0:00:34]} 35. Qf3 {[%clk 0:00:05]}  d3 {[%clk 0:00:33]} 36. Re3 {[%clk 0:00:05]}  c4 {[%clk 0:00:32]} 37. Rc1 {[%clk 0:00:05]}  Rc5 {[%clk 0:00:31]} 38. e5 {[%clk 0:00:04]}  Qxf3+ {[%clk 0:00:30]} 39. Kxf3 {[%clk 0:00:05]}  fxe5 {[%clk 0:00:31]} 40. Ke4 {[%clk 0:00:05]}  Rd4+ {[%clk 0:00:31]} 41. Kf3 {[%clk 0:00:05]}  d2 {[%clk 0:00:31]} 42. Rd1 {[%clk 0:00:05]}  c3 {[%clk 0:00:32]} 43. Rxc3 {[%clk 0:00:05]}  Rxc3+ {[%clk 0:00:32]} 44. Ke2 {[%clk 0:00:06]}  Rc1 {[%clk 0:00:32]} 45. Rxd2 {[%clk 0:00:07]}  Rxd2+ {[%clk 0:00:32]} 46. Kxd2 {[%clk 0:00:08]}  Ra1 {[%clk 0:00:33]} 0-1


[Site "https://www.chess.com"]